[Event "*** Titled Tuesday 3|2 Blitz"]
[Site "Chess.com"]
[Date "2016.09.06"]
[Round "9"]
[White "maciek_92"]
[Black "nihalsarin"]
[Result "1/2-1/2"]
[WhiteElo "2544"]
[BlackElo "2430"]
[TimeControl "180+2"]
[EndTime "12:59:04 PDT"]
[Termination "Game drawn - insufficient material"]

1. c4 {[%clk 0:03:01.9]} 1... c6 {[%clk 0:03:00.5]} 2. Nf3 {[%clk 0:03:02.6]}
2... d5 {[%clk 0:03:01.5]} 3. b3 {[%clk 0:03:04]} 3... Nf6 {[%clk 0:03:00.8]} 4.
Bb2 {[%clk 0:03:05.3]} 4... Bf5 {[%clk 0:03:01.8]} 5. g3 {[%clk 0:03:03.2]} 5...
e6 {[%clk 0:03:02.8]} 6. Bg2 {[%clk 0:03:04.7]} 6... Nbd7 {[%clk 0:03:03.9]} 7.
O-O {[%clk 0:03:06.2]} 7... Bd6 {[%clk 0:03:03.7]} 8. d3 {[%clk 0:03:07.7]} 8...
O-O {[%clk 0:03:01.9]} 9. Nc3 {[%clk 0:03:01.8]} 9... Qb8 {[%clk 0:03:00.1]} 10.
Re1 {[%clk 0:02:53.1]} 10... Bg6 {[%clk 0:02:59.3]} 11. Rc1 {[%clk 0:02:51.7]}
11... a5 {[%clk 0:02:58.2]} 12. Qd2 {[%clk 0:02:33.9]} 12... b5 {[%clk
0:02:56.3]} 13. cxb5 {[%clk 0:02:19.6]} 13... cxb5 {[%clk 0:02:57.2]} 14. Nd4
{[%clk 0:02:21]} 14... b4 {[%clk 0:02:57.6]} 15. Na4 {[%clk 0:02:16.3]} 15... e5
{[%clk 0:02:37.8]} 16. Nc6 {[%clk 0:01:58.5]} 16... Qb5 {[%clk 0:02:33.8]} 17.
d4 {[%clk 0:01:57.8]} 17... e4 {[%clk 0:02:31.6]} 18. Ne5 {[%clk 0:01:57]} 18...
Rac8 {[%clk 0:02:24.1]} 19. e3 {[%clk 0:01:48.1]} 19... Qb7 {[%clk 0:02:03]} 20.
Bh3 {[%clk 0:01:42.7]} 20... Rxc1 {[%clk 0:01:45.7]} 21. Rxc1 {[%clk 0:01:42.8]}
21... Re8 {[%clk 0:01:46.9]} 22. Nxd7 {[%clk 0:01:27.6]} 22... Nxd7 {[%clk
0:01:47.4]} 23. Qc2 {[%clk 0:01:27.3]} 23... f5 {[%clk 0:01:27.7]} 24. Qc6
{[%clk 0:01:24.5]} 24... Qxc6 {[%clk 0:01:26.6]} 25. Rxc6 {[%clk 0:01:26.4]}
25... Be7 {[%clk 0:01:20.5]} 26. Bf1 {[%clk 0:01:25.5]} 26... Rb8 {[%clk
0:01:13.3]} 27. Ra6 {[%clk 0:01:10.2]} 27... Bd8 {[%clk 0:01:13.7]} 28. Rd6
{[%clk 0:00:56.1]} 28... Nf6 {[%clk 0:01:03.5]} 29. Nc5 {[%clk 0:00:57]} 29...
Be8 {[%clk 0:00:55.4]} 30. Bh3 {[%clk 0:00:40.7]} 30... g6 {[%clk 0:00:40.4]}
31. Bf1 {[%clk 0:00:32]} 31... Kf7 {[%clk 0:00:33]} 32. Ra6 {[%clk 0:00:32.7]}
32... Bb6 {[%clk 0:00:27.1]} 33. a3 {[%clk 0:00:30.3]} 33... Nd7 {[%clk
0:00:20.9]} 34. axb4 {[%clk 0:00:30.9]} 34... axb4 {[%clk 0:00:21.6]} 35. Na4
{[%clk 0:00:31.7]} 35... Bd8 {[%clk 0:00:20.8]} 36. Ra7 {[%clk 0:00:29.8]} 36...
Ke6 {[%clk 0:00:20.5]} 37. Nc5+ {[%clk 0:00:28.1]} 37... Nxc5 {[%clk 0:00:17.9]}
38. dxc5 {[%clk 0:00:30]} 38... Bc6 {[%clk 0:00:18.6]} 39. Rxh7 {[%clk
0:00:25.9]} 39... Bf6 {[%clk 0:00:19.3]} 40. Bxf6 {[%clk 0:00:24]} 40... Kxf6
{[%clk 0:00:20.7]} 41. Rc7 {[%clk 0:00:25.6]} 41... Bb5 {[%clk 0:00:21.9]} 42.
Bxb5 {[%clk 0:00:23.3]} 42... Rxb5 {[%clk 0:00:22.6]} 43. h4 {[%clk 0:00:23.8]}
43... Ke5 {[%clk 0:00:21.9]} 44. Re7+ {[%clk 0:00:20.7]} 44... Kf6 {[%clk
0:00:22.7]} 45. Rc7 {[%clk 0:00:21.9]} 45... Ke5 {[%clk 0:00:23.6]} 46. Kg2
{[%clk 0:00:22.7]} 46... d4 {[%clk 0:00:24.4]} 47. exd4+ {[%clk 0:00:24.6]}
47... Kxd4 {[%clk 0:00:25.5]} 48. Rg7 {[%clk 0:00:26]} 48... Rxc5 {[%clk
0:00:25.4]} 49. Rxg6 {[%clk 0:00:27.6]} 49... Kc3 {[%clk 0:00:26.8]} 50. h5
{[%clk 0:00:28.1]} 50... Kxb3 {[%clk 0:00:27.7]} 51. h6 {[%clk 0:00:29.7]} 51...
Rc8 {[%clk 0:00:27.6]} 52. Kh3 {[%clk 0:00:25.7]} 52... Kc2 {[%clk 0:00:27.1]}
53. Kh4 {[%clk 0:00:22.7]} 53... b3 {[%clk 0:00:28.1]} 54. Rb6 {[%clk 0:00:21]}
54... b2 {[%clk 0:00:28.8]} 55. Kg5 {[%clk 0:00:22.5]} 55... b1=Q {[%clk
0:00:26.5]} 56. Rxb1 {[%clk 0:00:22.9]} 56... Kxb1 {[%clk 0:00:27.9]} 57. Kxf5
{[%clk 0:00:24.5]} 57... Rh8 {[%clk 0:00:27.6]} 58. Kg6 {[%clk 0:00:21.5]} 58...
Kc2 {[%clk 0:00:27.5]} 59. Kg7 {[%clk 0:00:17.3]} 59... Rd8 {[%clk 0:00:27.4]}
60. g4 {[%clk 0:00:19]} 60... Kd3 {[%clk 0:00:27.1]} 61. g5 {[%clk 0:00:20.4]}
61... Ke2 {[%clk 0:00:28.5]} 62. h7 {[%clk 0:00:18.7]} 62... Kxf2 {[%clk
0:00:29.4]} 63. h8=Q {[%clk 0:00:19.5]} 63... Rxh8 {[%clk 0:00:30.5]} 64. Kxh8
{[%clk 0:00:21.4]} 64... e3 {[%clk 0:00:32]} 65. g6 {[%clk 0:00:23.3]} 65... e2
{[%clk 0:00:33.5]} 66. g7 {[%clk 0:00:25.2]} 66... e1=Q {[%clk 0:00:34.9]} 67.
g8=Q {[%clk 0:00:27.1]} 67... Qh1+ {[%clk 0:00:35.4]} 68. Qh7 {[%clk 0:00:29]}
68... Qxh7+ {[%clk 0:00:36.3]} 69. Kxh7 {[%clk 0:00:30.9]} 1/2-1/2

[Event "*** Titled Tuesday 3|2 Blitz"]
[Site "Chess.com"]
[Date "2016.09.06"]
[Round "9"]
[White "jb2mix"]
[Black "DanielNaroditsky"]
[Result "0-1"]
[WhiteElo "2432"]
[BlackElo "2733"]
[TimeControl "180+2"]
[EndTime "12:59:08 PDT"]
[Termination "DanielNaroditsky won by checkmate"]

1. e4 {[%clk 0:03:02]} 1... e6 {[%clk 0:03:01.2]} 2. d4 {[%clk 0:03:03.2]} 2...
d5 {[%clk 0:03:03.1]} 3. Nd2 {[%clk 0:03:04.3]} 3... Be7 {[%clk 0:03:04.2]} 4.
e5 {[%clk 0:03:03.5]} 4... c5 {[%clk 0:03:05.3]} 5. c3 {[%clk 0:03:04.9]} 5...
Nc6 {[%clk 0:03:06.7]} 6. Bd3 {[%clk 0:03:05.4]} 6... cxd4 {[%clk 0:03:07.4]} 7.
cxd4 {[%clk 0:03:07.3]} 7... Nxd4 {[%clk 0:03:09]} 8. Qg4 {[%clk 0:03:06]} 8...
Nf5 {[%clk 0:02:16.7]} 9. Bxf5 {[%clk 0:03:03.9]} 9... Bg5 {[%clk 0:02:04.8]}
10. Bd3 {[%clk 0:02:46.5]} 10... h5 {[%clk 0:02:05.7]} 11. Qe2 {[%clk
0:02:47.2]} 11... Ne7 {[%clk 0:02:06.4]} 12. Ngf3 {[%clk 0:02:47.8]} 12... Bh6
{[%clk 0:02:07.3]} 13. Nd4 {[%clk 0:02:43.6]} 13... Bd7 {[%clk 0:02:05.1]} 14.
N2f3 {[%clk 0:02:43]} 14... Qb6 {[%clk 0:02:00.2]} 15. O-O {[%clk 0:02:41.5]}
15... Nc6 {[%clk 0:01:57.7]} 16. Nb5 {[%clk 0:02:40.6]} 16... Kf8 {[%clk
0:01:54.6]} 17. Be3 {[%clk 0:02:31.5]} 17... Qd8 {[%clk 0:01:53.6]} 18. Nd6
{[%clk 0:02:27.7]} 18... Kg8 {[%clk 0:01:49.8]} 19. Nxb7 {[%clk 0:02:26.8]}
19... Qe7 {[%clk 0:01:50.6]} 20. Bc5 {[%clk 0:02:22.8]} 20... Qe8 {[%clk
0:01:50.2]} 21. Nd6 {[%clk 0:02:23.3]} 21... Qb8 {[%clk 0:01:51.9]} 22. b4
{[%clk 0:02:21.4]} 22... Ne7 {[%clk 0:01:42]} 23. Nd4 {[%clk 0:02:19.3]} 23...
h4 {[%clk 0:01:37.9]} 24. f4 {[%clk 0:02:19.1]} 24... g6 {[%clk 0:01:38.4]} 25.
a4 {[%clk 0:02:17.6]} 25... Qc7 {[%clk 0:01:37.9]} 26. a5 {[%clk 0:02:06.6]}
26... Bg7 {[%clk 0:01:38.6]} 27. Rac1 {[%clk 0:02:05.5]} 27... Rh5 {[%clk
0:01:38.6]} 28. N4b5 {[%clk 0:01:59.9]} 28... Qb8 {[%clk 0:01:38.7]} 29. Qe3
{[%clk 0:01:59.1]} 29... Nc6 {[%clk 0:01:39.5]} 30. Nd4 {[%clk 0:01:54.5]} 30...
Ne7 {[%clk 0:01:26.8]} 31. b5 {[%clk 0:01:54.1]} 31... Bh6 {[%clk 0:01:27.1]}
32. b6 {[%clk 0:01:49.7]} 32... axb6 {[%clk 0:01:29]} 33. Bxb6 {[%clk 0:01:51]}
33... f6 {[%clk 0:01:25.8]} 34. exf6 {[%clk 0:01:35.8]} 34... Qxd6 {[%clk
0:01:26.7]} 35. Bc7 {[%clk 0:01:28.4]} 35... Qa3 {[%clk 0:01:12.2]} 36. fxe7
{[%clk 0:01:25]} 36... Bg7 {[%clk 0:01:10.9]} 37. Be5 {[%clk 0:01:12.2]} 37...
Bh6 {[%clk 0:01:06.8]} 38. a6 {[%clk 0:01:10.4]} 38... Rxe5 {[%clk 0:00:58.7]}
39. Qxe5 {[%clk 0:01:07.2]} 39... Qxd3 {[%clk 0:01:00.6]} 40. a7 {[%clk
0:01:05.7]} 40... Kh7 {[%clk 0:00:53.5]} 41. Nxe6 {[%clk 0:01:02.4]} 41... Be8
{[%clk 0:00:46.5]} 42. Nf8+ {[%clk 0:00:58.8]} 42... Kg8 {[%clk 0:00:47.3]} 43.
Qb8 {[%clk 0:00:44.8]} 43... Qe3+ {[%clk 0:00:43.2]} 44. Kh1 {[%clk 0:00:44.2]}
44... Qxa7 {[%clk 0:00:43.4]} 45. Qe5 {[%clk 0:00:35.3]} 45... Bf7 {[%clk
0:00:38.1]} 46. Rc7 {[%clk 0:00:16.2]} 46... Qa6 {[%clk 0:00:39.3]} 47. Re1
{[%clk 0:00:16.7]} 47... Re8 {[%clk 0:00:40.1]} 48. Nd7 {[%clk 0:00:15.6]} 48...
Bg7 {[%clk 0:00:39.3]} 49. Qg5 {[%clk 0:00:15]} 49... Qd6 {[%clk 0:00:33.6]} 50.
Rb7 {[%clk 0:00:04.8]} 50... h3 {[%clk 0:00:35.1]} 51. Ne5 {[%clk 0:00:03.5]}
51... d4 {[%clk 0:00:21.6]} 52. Nxf7 {[%clk 0:00:02.7]} 52... Kxf7 {[%clk
0:00:23.5]} 53. Qg3 {[%clk 0:00:02.6]} 53... hxg2+ {[%clk 0:00:21]} 54. Qxg2
{[%clk 0:00:04.5]} 54... Bf6 {[%clk 0:00:19.1]} 55. Rb2 {[%clk 0:00:05]} 55...
d3 {[%clk 0:00:20]} 56. Rd2 {[%clk 0:00:06]} 56... Bc3 {[%clk 0:00:20.8]} 57.
Red1 {[%clk 0:00:06.5]} 57... Bxd2 {[%clk 0:00:22.1]} 58. Qxd2 {[%clk
0:00:07.5]} 58... Rxe7 {[%clk 0:00:19.6]} 59. Qa2+ {[%clk 0:00:08.6]} 59... Kg7
{[%clk 0:00:20]} 60. Qb2+ {[%clk 0:00:09.9]} 60... Kh7 {[%clk 0:00:21.1]} 61.
Qg2 {[%clk 0:00:10.8]} 61... Re2 {[%clk 0:00:16.7]} 62. Qh3+ {[%clk 0:00:10.7]}
62... Kg7 {[%clk 0:00:18.4]} 63. Rxd3 {[%clk 0:00:10.4]} 63... Qc6+ {[%clk
0:00:18.1]} 64. Kg1 {[%clk 0:00:09.3]} 64... Qc5+ {[%clk 0:00:16]} 65. Kf1
{[%clk 0:00:07.3]} 65... Qf2# {[%clk 0:00:16.7]} 0-1

[Event "*** Titled Tuesday 3|2 Blitz"]
[Site "Chess.com"]
[Date "2016.09.06"]
[Round "9"]
[White "Colombiano07"]
[Black "Wolverine_master"]
[Result "1/2-1/2"]
[WhiteElo "2187"]
[BlackElo "2039"]
[TimeControl "180+2"]
[EndTime "12:59:08 PDT"]
[Termination "Game drawn by repetition"]

1. e4 {[%clk 0:02:58.9]} 1... d5 {[%clk 0:03:00.5]} 2. exd5 {[%clk 0:02:58.7]}
2... Qxd5 {[%clk 0:03:02.4]} 3. Nc3 {[%clk 0:03:00]} 3... Qd6 {[%clk 0:03:04]}
4. Nf3 {[%clk 0:03:00.1]} 4... Nf6 {[%clk 0:03:05.4]} 5. g3 {[%clk 0:03:02]}
5... a6 {[%clk 0:03:06.9]} 6. Bg2 {[%clk 0:03:03.9]} 6... Nc6 {[%clk 0:03:08.2]}
7. O-O {[%clk 0:03:05.8]} 7... Bg4 {[%clk 0:03:09.6]} 8. d4 {[%clk 0:03:04.3]}
8... O-O-O {[%clk 0:03:10.4]} 9. Bf4 {[%clk 0:03:05.9]} 9... e5 {[%clk
0:03:11.2]} 10. dxe5 {[%clk 0:03:01.4]} 10... Qxd1 {[%clk 0:02:40.9]} 11. Raxd1
{[%clk 0:03:03.3]} 11... Nd7 {[%clk 0:02:37.5]} 12. Rfe1 {[%clk 0:02:59.4]}
12... Bb4 {[%clk 0:02:36.2]} 13. Rd3 {[%clk 0:02:57.1]} 13... Rhe8 {[%clk
0:02:35.9]} 14. Rde3 {[%clk 0:02:45]} 14... Bc5 {[%clk 0:02:25.6]} 15. R3e2
{[%clk 0:02:37.5]} 15... Bxf3 {[%clk 0:02:19.9]} 16. Bxf3 {[%clk 0:02:36.1]}
16... Nd4 {[%clk 0:02:21]} 17. Bg4 {[%clk 0:02:23.1]} 17... Nxe2+ {[%clk
0:02:19.4]} 18. Rxe2 {[%clk 0:02:25]} 18... Kb8 {[%clk 0:02:12]} 19. Ne4 {[%clk
0:02:22.1]} 19... Bd4 {[%clk 0:02:06.7]} 20. Ng5 {[%clk 0:02:01]} 20... Nxe5
{[%clk 0:01:53.5]} 21. Bxe5 {[%clk 0:02:00.9]} 21... Rxe5 {[%clk 0:01:08.3]} 22.
Rxe5 {[%clk 0:01:56.5]} 22... Bxe5 {[%clk 0:01:10.2]} 23. Nxf7 {[%clk
0:01:58.4]} 23... Re8 {[%clk 0:01:10.8]} 24. c3 {[%clk 0:01:53]} 24... h6 {[%clk
0:01:09.5]} 25. Nxe5 {[%clk 0:01:32.9]} 25... Rxe5 {[%clk 0:01:08.8]} 26. Kg2
{[%clk 0:01:31.1]} 26... Rd5 {[%clk 0:01:03.8]} 27. Be6 {[%clk 0:01:17]} 27...
Rd2 {[%clk 0:01:02.9]} 28. b4 {[%clk 0:01:15.8]} 28... Rc2 {[%clk 0:01:02.7]}
29. Kf3 {[%clk 0:01:09.6]} 29... Rxc3+ {[%clk 0:01:03]} 30. Kf4 {[%clk 0:01:11]}
30... c6 {[%clk 0:00:58.7]} 31. h4 {[%clk 0:01:05.5]} 31... Kc7 {[%clk
0:00:59.4]} 32. g4 {[%clk 0:00:48.8]} 32... Kd6 {[%clk 0:00:59.1]} 33. Bb3
{[%clk 0:00:49.3]} 33... Ke7 {[%clk 0:00:53]} 34. h5 {[%clk 0:00:44.6]} 34... c5
{[%clk 0:00:45.9]} 35. bxc5 {[%clk 0:00:43.8]} 35... Rxc5 {[%clk 0:00:47.8]} 36.
Ke4 {[%clk 0:00:45.1]} 36... b5 {[%clk 0:00:48.2]} 37. f4 {[%clk 0:00:43.9]}
37... a5 {[%clk 0:00:48.4]} 38. Kd4 {[%clk 0:00:40.3]} 38... Rc1 {[%clk
0:00:48.6]} 39. Bg8 {[%clk 0:00:35.2]} 39... a4 {[%clk 0:00:43.4]} 40. g5 {[%clk
0:00:35.9]} 40... hxg5 {[%clk 0:00:43.5]} 41. fxg5 {[%clk 0:00:37.8]} 41... Rh1
{[%clk 0:00:21.5]} 42. h6 {[%clk 0:00:32.9]} 42... gxh6 {[%clk 0:00:21.4]} 43.
gxh6 {[%clk 0:00:34.8]} 43... Rxh6 {[%clk 0:00:21.9]} 44. Kc5 {[%clk 0:00:35.8]}
44... Rh5+ {[%clk 0:00:23]} 45. Kb4 {[%clk 0:00:36.7]} 45... Kd6 {[%clk
0:00:24.1]} 46. Bf7 {[%clk 0:00:36.1]} 46... Rg5 {[%clk 0:00:25.1]} 47. Be8
{[%clk 0:00:37.3]} 47... Rg4+ {[%clk 0:00:19]} 48. Kxb5 {[%clk 0:00:35.9]} 48...
a3 {[%clk 0:00:20.1]} 49. Bf7 {[%clk 0:00:35.7]} 49... Rd4 {[%clk 0:00:17.8]}
50. Bc4 {[%clk 0:00:36.1]} 50... Ke5 {[%clk 0:00:19.1]} 51. Kb4 {[%clk
0:00:37.2]} 51... Ke4 {[%clk 0:00:16.2]} 52. Kb3 {[%clk 0:00:35.5]} 52... Ke3
{[%clk 0:00:11.6]} 53. Bb5 {[%clk 0:00:34.2]} 53... Kd2 {[%clk 0:00:11.9]} 54.
Kxa3 {[%clk 0:00:34.8]} 54... Kc3 {[%clk 0:00:13.4]} 55. Be2 {[%clk 0:00:22.7]}
55... Re4 {[%clk 0:00:12.1]} 56. Bb5 {[%clk 0:00:22.5]} 56... Rd4 {[%clk
0:00:08.7]} 57. Be2 {[%clk 0:00:21.4]} 57... Re4 {[%clk 0:00:09.6]} 58. Bb5
{[%clk 0:00:22.2]} 58... Rd4 {[%clk 0:00:08.9]} 59. Be2 {[%clk 0:00:22.5]}
1/2-1/2

[Event "*** Titled Tuesday 3|2 Blitz"]
[Site "Chess.com"]
[Date "2016.09.06"]
[Round "9"]
[White "Krutoy123"]
[Black "wonderfultime"]
[Result "0-1"]
[WhiteElo "2483"]
[BlackElo "2674"]
[TimeControl "180+2"]
[EndTime "12:59:09 PDT"]
[Termination "wonderfultime won by resignation"]

1. e4 {[%clk 0:02:55.7]} 1... c5 {[%clk 0:02:59.5]} 2. Nf3 {[%clk 0:02:56.4]}
2... d6 {[%clk 0:03:00.4]} 3. c3 {[%clk 0:02:56.1]} 3... Nf6 {[%clk 0:02:59.6]}
4. Be2 {[%clk 0:02:56.7]} 4... g6 {[%clk 0:03:00.7]} 5. O-O {[%clk 0:02:57.1]}
5... Bg7 {[%clk 0:03:02.3]} 6. Re1 {[%clk 0:02:57]} 6... O-O {[%clk 0:03:03.6]}
7. Bf1 {[%clk 0:02:58.1]} 7... Bg4 {[%clk 0:03:03.2]} 8. h3 {[%clk 0:02:57.3]}
8... Bxf3 {[%clk 0:03:04.6]} 9. Qxf3 {[%clk 0:02:59.2]} 9... Nc6 {[%clk
0:03:06.5]} 10. Qd1 {[%clk 0:03:00.3]} 10... Nd7 {[%clk 0:03:06.3]} 11. Na3
{[%clk 0:02:57.7]} 11... a6 {[%clk 0:03:02.2]} 12. Nc2 {[%clk 0:02:57.2]} 12...
Rc8 {[%clk 0:03:00.8]} 13. a4 {[%clk 0:02:55.5]} 13... Na5 {[%clk 0:02:53.2]}
14. Ne3 {[%clk 0:02:52.7]} 14... c4 {[%clk 0:02:51.4]} 15. d4 {[%clk 0:02:43.9]}
15... cxd3 {[%clk 0:02:49.8]} 16. Bxd3 {[%clk 0:02:42.6]} 16... Re8 {[%clk
0:02:50.6]} 17. Rb1 {[%clk 0:02:33.8]} 17... Ne5 {[%clk 0:02:40]} 18. Bf1 {[%clk
0:02:31.5]} 18... Nac4 {[%clk 0:02:24.9]} 19. Nc2 {[%clk 0:02:23.5]} 19... Qb6
{[%clk 0:02:19]} 20. b3 {[%clk 0:02:17.4]} 20... Na5 {[%clk 0:02:14.5]} 21. Be3
{[%clk 0:02:13.5]} 21... Qc7 {[%clk 0:02:05]} 22. Bd2 {[%clk 0:01:58.7]} 22...
Red8 {[%clk 0:02:04.6]} 23. Ne3 {[%clk 0:01:56.7]} 23... e6 {[%clk 0:02:02.9]}
24. c4 {[%clk 0:01:49.3]} 24... Nac6 {[%clk 0:02:02.6]} 25. Bc1 {[%clk
0:01:33.7]} 25... a5 {[%clk 0:01:59.3]} 26. Bb2 {[%clk 0:01:27.8]} 26... Nb4
{[%clk 0:01:57.6]} 27. Nc2 {[%clk 0:01:25.5]} 27... Nxc2 {[%clk 0:01:52.9]} 28.
Qxc2 {[%clk 0:01:27.4]} 28... Nc6 {[%clk 0:01:54.6]} 29. Ba3 {[%clk 0:01:24.5]}
29... Qb6 {[%clk 0:01:52.3]} 30. Qd2 {[%clk 0:01:22.2]} 30... Bd4 {[%clk
0:01:51.6]} 31. Red1 {[%clk 0:01:14.7]} 31... e5 {[%clk 0:01:52.1]} 32. Qe2
{[%clk 0:01:03.9]} 32... Rf8 {[%clk 0:01:52.7]} 33. Bxd6 {[%clk 0:01:00.2]}
33... Rfd8 {[%clk 0:01:52.5]} 34. Ba3 {[%clk 0:00:59.4]} 34... Rd7 {[%clk
0:01:53.2]} 35. Rd3 {[%clk 0:00:56.3]} 35... Nb4 {[%clk 0:01:50.4]} 36. Rd2
{[%clk 0:00:48.4]} 36... Rcd8 {[%clk 0:01:47.8]} 37. Kh1 {[%clk 0:00:37.9]}
37... Bc3 {[%clk 0:01:39.4]} 38. Rd5 {[%clk 0:00:37.2]} 38... Nxd5 {[%clk
0:01:38.4]} 39. exd5 {[%clk 0:00:38.5]} 39... Bd4 {[%clk 0:01:35.8]} 40. Qc2
{[%clk 0:00:22.7]} 40... Qf6 {[%clk 0:01:24.8]} 41. f3 {[%clk 0:00:19.1]} 41...
b6 {[%clk 0:01:23.5]} 42. Re1 {[%clk 0:00:19.8]} 42... Qh4 {[%clk 0:01:24.1]}
43. Re4 {[%clk 0:00:20]} 43... Qg3 {[%clk 0:01:23]} 44. Bc1 {[%clk 0:00:18]}
44... f5 {[%clk 0:01:23]} 45. Bf4 {[%clk 0:00:17.6]} 45... Qh4 {[%clk
0:01:05.2]} 46. Bxe5 {[%clk 0:00:16]} 46... fxe4 {[%clk 0:01:05.4]} 47. Bxd4
{[%clk 0:00:17.6]} 47... exf3 {[%clk 0:01:05.6]} 48. Bb2 {[%clk 0:00:18.7]}
48... fxg2+ {[%clk 0:01:03.4]} 49. Bxg2 {[%clk 0:00:19.2]} 49... Re8 {[%clk
0:01:03.1]} 50. Bc3 {[%clk 0:00:13.1]} 50... Rde7 {[%clk 0:00:59.2]} 51. Qd3
{[%clk 0:00:07.5]} 51... Re3 {[%clk 0:00:57.2]} 52. Qd4 {[%clk 0:00:08.1]} 52...
Qxd4 {[%clk 0:00:19.1]} 53. Bxd4 {[%clk 0:00:10]} 53... Rxb3 {[%clk 0:00:21]}
54. d6 {[%clk 0:00:11]} 54... Rd8 {[%clk 0:00:21.8]} 55. c5 {[%clk 0:00:11.9]}
55... bxc5 {[%clk 0:00:22.2]} 56. Bd5+ {[%clk 0:00:12]} 56... Kf8 {[%clk
0:00:23]} 57. Bxc5 {[%clk 0:00:11.8]} 57... Rd3 {[%clk 0:00:22.6]} 58. Bc6
{[%clk 0:00:03.4]} 58... R3xd6 {[%clk 0:00:23.3]} 59. Bb5 {[%clk 0:00:03.4]}
59... Kg7 {[%clk 0:00:24.2]} 60. Bxd6 {[%clk 0:00:04.6]} 60... Rxd6 {[%clk
0:00:26.1]} 61. Kg2 {[%clk 0:00:06.5]} 61... Rd4 {[%clk 0:00:27.5]} 62. Kf3
{[%clk 0:00:08.4]} 62... Rb4 {[%clk 0:00:29.4]} 63. Ke3 {[%clk 0:00:09.7]} 63...
Kf6 {[%clk 0:00:31.3]} 0-1